Cogmind - Beta 9.3 *** ADVENTURER MODE // 2019.12.22 @ 02:28:15 // Winter2019/RPGLIKE Player: Moredread Result: Self-destructed Performance ------------- Evolutions (2) 1000 Regions Visited (4) 800 Robots Destroyed (17) 85 Value Destroyed (503) 503 Prototype IDs (1) 20 Alien Tech Used (0) 0 Bonus (200) 200 TOTAL SCORE: 2608 Bonus ------- Entered Garrisons 200 Cogmind --------- Core Integrity 696/1000 Matter 275/300 Energy 280/280 System Corruption 0% Temperature Cool (196) Movement Rolling (80) Location -8/Garrison Parts ------- > --- POWER (1) -------- Heavy Ion Engine > --- PROPULSION (2) --- Wheel Wheel > --- UTILITY (3) ------ Disposable Heat Sink Improved Signal Interpreter Improved Targeting Computer > --- WEAPON (3) ------- Heavy EM Pulse Gun Medium Laser Particle Gun > --- INVENTORY (2) ---- Heat Sink Peak State ------------ > --- POWER ------------ Heavy Ion Engine > --- PROPULSION ------- Wheel Wheel > --- UTILITY ---------- Disposable Heat Sink Improved Signal Interpreter Improved Targeting Computer > --- WEAPON ----------- Medium Laser Beam Rifle Particle Gun > --- INVENTORY -------- Heat Sink Heavy EM Pulse Gun [Rating: 16] Favorites ----------- Power Heavy Ion Engine Engine Heavy Ion Engine Propulsion Wheel Leg Aluminum Leg Wheel Wheel Utility Improved Signal Interpreter Device Disposable Heat Sink Processor Improved Signal Interpreter Weapon Medium Laser Energy Gun Medium Laser Ballistic Gun Light Assault Rifle Build | -11 -10 -9 -8 -8 ------- Run | Scr Mat Mat Mat Gar Slots Evolved 5 | 3 . 2 . . Power . | . . . . . Propulsion 1 | 1 . . . . Utility 2 | 1 . 1 . . Weapon 2 | 1 . 1 . . Parts Attached 15 | 3 3 6 2 1 Power 3 | . . 1 2 . Engine 3 | . . 1 2 . Core . | . . . . . Reactor . | . . . . . Propulsion 2 | 2 . . . . Treads . | . . . . . Leg . | . . . . . Wheel 2 | 2 . . . . Hover . | . . . . . Flight . | . . . . . Utility 5 | . 2 3 . . Device 3 | . 2 1 . . Storage . | . . . . . Processor 2 | . . 2 . . Hackware . | . . . . . Protection . | . . . . . Artifact . | . . . . . Weapon 5 | 1 1 2 . 1 Energy Gun 5 | 1 1 2 . 1 Energy Cannon . | . . . . . Ballistic Gun . | . . . . . Ballistic Cannon . | . . . . . Launcher . | . . . . . Special Weapon . | . . . . . Impact Weapon . | . . . . . Slashing Weapon . | . . . . . Piercing Weapon . | . . . . . Special Melee Weapon . | . . . . . Unidentified Prototypes 1 | . . 1 . . Parts Lost 1 | . . . . 1 Power . | . . . . . Propulsion . | . . . . . Utility . | . . . . . Weapon 1 | . . . . 1 Highest Loss Streak 1 | . . . . 1 Average Slot Usage (%) 93 | . 78 100 94 100 Engine 11 | . 14 11 5 11 Wheel 24 | . 28 23 22 22 Device 11 | . 7 13 11 11 Processor 13 | . . 18 22 22 Energy Gun 28 | . 17 31 33 33 Ballistic Gun 3 | . 10 . . . Naked Turns . | . . . . . Heaviest Build 17 | 6 9 17 17 17 Greatest Support 20 | 20 20 20 20 20 Greatest Overweight (x) . | . . . . . Average Overweight (x) . | . . . . . Largest Inventory Capacity 2 | 2 2 2 2 2 Average Capacity 1 | . 2 2 2 2 Most Carried 2 | . 2 2 2 2 Average Carried 1 | . . 1 2 1 Final Capacity 2 | 2 2 2 2 2 Final Carried 2 | . 2 2 2 1 Class Distribution -------------------- 60% | Gunner 39% | Mutant Dominant Class ---------------- Mutant | -10/Materials Gunner | -9/Materials Gunner | -8/Materials Gunner | -8/Garrison Resources | -11 -10 -9 -8 -8 ----------- Run | Scr Mat Mat Mat Gar Matter Collected 337 | 200 77 60 . . Remotely . | . . . . . Salvage Created 660 | . 125 288 . 247 Parts 34 | . 11 11 . 12 Haulers Intercepted 1 | . . 1 . . Recyclers Shooed . | . . . . . Parts Field Recycled . | . . . . . Retrieved Matter . | . . . . . Parts Self-Destructed . | . . . . . Prevented . | . . . . . Kills | -11 -10 -9 -8 -8 ------- Run | Scr Mat Mat Mat Gar Combat Hostiles Destroyed 16 | . 5 5 . 6 Guns 16 | . 5 5 . 6 Classes Destroyed 4 | . 2 2 . . Hauler 1 | . . 1 . . Swarmer 5 | . 3 . . 2 Grunt 9 | . 2 4 . 3 Sentry 2 | . . 1 . 1 Best Kill Streak 4 | . 4 2 . 3 Combat Bots Only 4 | . 4 2 . 3 Max Kills in Single Turn 1 | . 1 1 . 1 Gunslinging . | . . . . . Exploded . | . . . . . Melee . | . . . . . Uniques/NPCs Destroyed . | . . . . . Combat | -11 -10 -9 -8 -8 -------- Run | Scr Mat Mat Mat Gar Damage Taken 710 | . 142 127 . 441 Core 554 | . 112 101 . 341 Absorbed by Shields . | . . . . . Redirected to Core 465 | . 82 81 . 302 Core Remaining (%) 96 | 100 99 89 . . Volleys Fired 54 | . 20 19 . 15 Largest 3 | . 2 3 . 3 Hottest 171 | . 100 171 . 171 Shots Fired 141 | . 40 56 . 45 Gun 141 | . 40 56 . 45 Cannon . | . . . . . Launcher . | . . . . . Special . | . . . . . Kinetic 17 | . 17 . . . Thermal 121 | . 23 56 . 42 Explosive . | . . . . . Electromagnetic 3 | . . . . 3 Robot Hit Streak 29 | . 11 13 . 29 Robot Miss Streak 4 | . 4 1 . 3 Penetration Max . | . . . . . Secondary Targets 4 | . 1 . . 3 Max Gunslinging Chain 1 | . 1 . . 1 Shots Hit Robots 98 | . 22 38 . 38 Core Hits 32 | . 9 10 . 13 Critical Hits . | . . . . . Critical Kills . | . . . . . Critical Parts Destroyed . | . . . . . Melee Attacks . | . . . . . Impact . | . . . . . Slashing . | . . . . . Piercing . | . . . . . Sneak Attacks . | . . . . . Combat Hostiles . | . . . . . Follow-up Attacks . | . . . . . Damage Inflicted 1225 | . 224 455 . 546 Guns 1225 | . 224 455 . 546 Cannons . | . . . . . Explosions . | . . . . . Melee . | . . . . . Ramming . | . . . . . Kinetic 57 | . 57 . . . Thermal 1155 | . 167 455 . 533 Explosive . | . . . . . Electromagnetic 13 | . . . . 13 Impact . | . . . . . Slashing . | . . . . . Piercing . | . . . . . Highest Corruption . | . . . . . Average Corruption . | . . . . . Corruption Purged . | . . . . . Overload Shots . | . . . . . Overflow Damage . | . . . . . Projectiles . | . . . . . Explosions . | . . . . . Melee . | . . . . . Knockbacks . | . . . . . Impact . | . . . . . Kinetic . | . . . . . Secondary . | . . . . . Self-Inflicted Damage . | . . . . . Shots . | . . . . . Rammed 1 | . . 1 . . Targets Rammed 1 | . . 1 . . Kicked . | . . . . . Crushed . | . . . . . Highest Temperature 281 | . 162 281 . 198 Average Temperature 114 | . 81 113 . 149 Received Heat Transfer 315 | . 21 69 . 225 Siege Activations . | . . . . . Robots Corrupted . | . . . . . Combat Hostiles . | . . . . . Parts Fried . | . . . . . Impact Corruptions . | . . . . . Robots Melted 1 | . . 1 . . Combat Hostiles . | . . . . . Parts Melted 7 | . . 2 . 5 Heat Transferred 2923 | . 481 1147 . 1295 Parts Sabotaged . | . . . . . Parts Stolen . | . . . . . Parts Stripped . | . . . . . Power Chain Reactions . | . . . . . Missiles Intercepted . | . . . . . Alert | -11 -10 -9 -8 -8 ------- Run | Scr Mat Mat Mat Gar Peak Influence 262 | . 154 210 75 262 Average Influence 101 | . 61 109 75 154 Maximum Alert Level 1 | . . 1 . 1 Low Security (%) 87 | 100 100 92 100 55 Level 1 12 | . . 7 . 44 Level 2 . | . . . . . Level 3 . | . . . . . Level 4 . | . . . . . Level 5 . | . . . . . High Security . | . . . . . Max Security . | . . . . . Squads Dispatched 2 | . . 2 . . Investigation 2 | . . 2 . . Extermination . | . . . . . Reinforcement . | . . . . . Assault . | . . . . . Garrison . | . . . . . Intercept . | . . . . . Construction Impeded . | . . . . . Haulers Reinforced . | . . . . . Stealth | -11 -10 -9 -8 -8 --------- Run | Scr Mat Mat Mat Gar Distress Signals . | . . . . . Communications Jammed . | . . . . . Distress Signals . | . . . . . Times Spotted 25 | . 10 6 . 9 Peak Tracking Total 4 | . 4 2 . 4 Tactical Retreats 1 | . 1 . . . Traps | -11 -10 -9 -8 -8 ------- Run | Scr Mat Mat Mat Gar Traps Triggered 2 | . . 2 . . Indirectly . | . . . . . Trap Hack Attempts . | . . . . . Triggered . | . . . . . Disarmed . | . . . . . Reprogrammed . | . . . . . Reused . | . . . . . Traps Extracted . | . . . . . Installed . | . . . . . Triggered . | . . . . . Machines | -11 -10 -9 -8 -8 ---------- Run | Scr Mat Mat Mat Gar Machines Disabled . | . . . . . Max in Single Turn . | . . . . . Machines Sabotaged . | . . . . . Garrisons Compromised . | . . . . . Overloaded Fab Kills . | . . . . . Fab Network Shutdowns . | . . . . . Hacking | -11 -10 -9 -8 -8 --------- Run | Scr Mat Mat Mat Gar Machines Accessed 4 | . 1 2 1 . Terminals 3 | . 1 2 . . Fabricators . | . . . . . Repair Stations . | . . . . . Recycling Units . | . . . . . Scanalyzers . | . . . . . Garrison Access 1 | . . . 1 . Total Hacks 8 | . 3 4 1 . Successful 6 | . 3 2 1 . Failed 2 | . . 2 . . Catastrophic . | . . . . . Database Lockouts . | . . . . . Manual 5 | . 1 4 . . Terminals 7 | . 3 4 . . Fabricators . | . . . . . Repair Stations . | . . . . . Recycling Units . | . . . . . Scanalyzers . | . . . . . Garrison Access 1 | . . . 1 . Terminal Hacks 2 | . 2 . . . Record 1 | . 1 . . . Robot Analysis 1 | . 1 . . . Fabricator Hacks . | . . . . . Repair Station Hacks . | . . . . . Recycling Unit Hacks . | . . . . . Scanalyzer . | . . . . . Garrison Access Hacks 1 | . . . 1 . Unlock Access 1 | . . . 1 . Unauthorized Hacks 8 | . 2 6 . . Terminals 3 | . 1 2 . . Botnet 3 | . 1 2 . . Fabricators . | . . . . . Repair Stations . | . . . . . Recycling Units . | . . . . . Scanalyzers . | . . . . . Garrison Access . | . . . . . Data Cores Recovered . | . . . . . Used . | . . . . . Hacking Detections 3 | . 1 2 . . Full Trace Events . | . . . . . Feedback Events . | . . . . . Feedback Blocked . | . . . . . Robot Schematics Acquired . | . . . . . Robots Built . | . . . . . Matter . | . . . . . Time . | . . . . . Total Robot Build Rating . | . . . . . Part Schematics Acquired . | . . . . . Parts Built . | . . . . . Matter . | . . . . . Time . | . . . . . Total Part Build Rating . | . . . . . Parts Repaired . | . . . . . Time . | . . . . . Parts Recycled . | . . . . . Recycled Matter . | . . . . . Retrieved Matter . | . . . . . Retrieved Components . | . . . . . Parts Scanalyzed . | . . . . . Part Schematics Acquired . | . . . . . Parts Damaged . | . . . . . Bothacking | -11 -10 -9 -8 -8 ------------ Run | Scr Mat Mat Mat Gar Used RIF Installer . | . . . . . Robots Hacked . | . . . . . Non-combat . | . . . . . Combat . | . . . . . Robot Hacks Applied . | . . . . . Relay Couplers Released . | . . . . . Robots Rewired . | . . . . . Allies Hacked . | . . . . . Hacks Repelled . | . . . . . Allies | -11 -10 -9 -8 -8 -------- Run | Scr Mat Mat Mat Gar Total Allies . | . . . . . Largest Group . | . . . . . Highest-Rated Group . | . . . . . Highest-Rated Ally . | . . . . . Total Orders . | . . . . . Ally Attacks . | . . . . . Total Damage . | . . . . . Kills . | . . . . . Allies Corrupted . | . . . . . Allies Melted . | . . . . . Intel | -11 -10 -9 -8 -8 ------- Run | Scr Mat Mat Mat Gar Robot Analysis Total 1 | . 1 . . . Derelict Logs Recovered . | . . . . . Drone Launches . | . . . . . Drone Recoveries . | . . . . . Exploration | -11 -10 -9 -8 -8 ------------- Run | Scr Mat Mat Mat Gar Turns Passed 573 | 9 161 269 25 109 Spaces Moved 418 | 5 111 216 27 59 Core . | . . . . . Treads . | . . . . . Legs 2 | 2 . . . . Wheels 416 | 3 111 216 27 59 Hover . | . . . . . Flight . | . . . . . Fastest Speed 80 | 80 80 80 80 80 Average Speed 80 | 96 80 80 80 80 Slowest Speed 120 | 120 80 80 80 80 Overloaded Moves . | . . . . . Propulsion Burnouts . | . . . . . Robots Hopped . | . . . . . Cave-ins Triggered . | . . . . . Exploration Rate (%) 18 | 2 24 28 3 33 Regions Visited 4 Branch Regions . Pre-discovered Areas . | . . . . . Known Exits Taken 2 | . . 1 1 . Unknown Exits Taken 2 | 1 1 . . . Scrap Searched . | . . . . . Spaces Dug . | . . . . . Terrain Destroyed . | . . . . . Melee . | . . . . . Projectile . | . . . . . AOE . | . . . . . Actions | -11 -10 -9 -8 -8 --------- Run | Scr Mat Mat Mat Gar Total 539 | 8 145 269 30 87 Wait 28 | . 1 22 . 5 Move 414 | 4 110 215 26 59 Hop . | . . . . . Pick Up 5 | . 3 2 . . Fast Attach 11 | 3 2 4 2 . Attach 2 | . . 1 . 1 Detach . | . . . . . Swap 2 | . 1 1 . . Drop 8 | 1 1 4 2 . Fire 54 | . 20 19 . 15 Melee . | . . . . . Ram 1 | . . 1 . . Kick . | . . . . . Crush . | . . . . . Escape Stasis . | . . . . . Rewire . | . . . . . Trap . | . . . . . Miscellaneous 14 | . 7 . . 7 Route ------- -11/Scrapyard -10/Materials -9/Materials -8/Materials -8/Garrison History --------- Turn | Location | Event 1 | -11/Scrapyard | Discovered new exit (range 0) 6 | -11/Scrapyard | Upgraded with Propulsion slot (x1) 6 | -11/Scrapyard | Upgraded with Utility slot (x1) 6 | -11/Scrapyard | Upgraded with Weapon slot (x1) 10 | -11/Scrapyard | Entered Materials 135 | -10/Materials | Discovered new exit (range 18) 171 | -10/Materials | Entered another Materials area 173 | -9/Materials | Reached level 2 173 | -9/Materials | Reached level 3 231 | -9/Materials | Upgraded with Utility slot (x1) 231 | -9/Materials | Upgraded with Weapon slot (x1) 389 | -9/Materials | Reached level 4 414 | -9/Materials | Discovered new exit (range 18) 431 | -9/Materials | Identified exit to Materials 440 | -9/Materials | Entered another Materials area 442 | -8/Materials | Reached level 5 442 | -8/Materials | Reached level 6 463 | -8/Materials | Identified exit to Garrison 465 | -8/Materials | Entered Garrison 494 | -8/Garrison | Triggered checkpoint 519 | -8/Garrison | Build established: Gunner 519 | -8/Garrison | Reached level 7 554 | -8/Garrison | Triggered checkpoint 568 | -8/Garrison | Triggered checkpoint 574 | -8/Garrison | Self-destructed Last Messages --------------- 00519_ Reached level 7. 00519_ Particle Gun melted. 00519_ Aluminum Leg melted. 00519_ G-47 Trooper destroyed. 00535_ Used Protomatter to restore core integrity (+147, depleted) 00551_ C-30 ARC bursts open, deploying its payload. 00551_ S-10 Pest unfolds itself. 00554_ Beams of light sweep through the air. An alarm sounds. 00554_ S-10 Pest destroyed. 00554_ Switching to secondary target: Y-45 Defender. 00557_ S-10 Pest destroyed. 00557_ Switching to secondary target: Y-45 Defender. 00563_ Beam Rifle destroyed. 00565_ Beam Rifle melted. 00565_ Y-45 Defender destroyed. 00565_ Switching to secondary target: Y-45 Defender. 00572_ C-30 ARC bursts open, deploying its payload. 00572_ H-55 Commando unfolds itself. 00572_ Slug penetrates Y-45 Defender. 00574_ Y-45 Defender heat short circuits Broken Lgt. Treads. Map ----- +----------------------------------------------------+ | ??????????????# #???????????????????????????????? | | ????????####### ###########?????????????????????? | | ????????# #?????????????????????? | | ????????# ##### ^ #?????????????????????? | | ??????????????# ######## #?????????????????????? | | ??????????????# #??????# #?????????????????????? | | ??????????????# #??????# #?????????????????????? | | ??????????????# #??????# #?????????????????????? | | ??????????????# #??????# #?????????????????????? | | ??????????????# #??????# #?????????????????????? | | ??????????????# #??????# #?????????????????????? | | ??????????????# #?????## ##""""############????? | | ??????????????# #######% ^ ?????? | | ??????????????# =[ ???????? | | ??????????????# %== ???????? | | ??????????????########## ## ## #??????????? | | ?????????????????????### ## ## ##?????????? | | ?????????????????????#C C?????????? | | ?????????????????????#C ??????????? | | ?????????????????????# "??????????? | | ?????????????????????# "??????????? | | ?????????????????????###% ## ## #??????????? | | ???????????????#######?# ## ## % #??????????? | | ???????????????? # h #??????????? | | ???????????????????? ; !Y! #??????????? | | ???????????????????????# @ *%[ #??????????? | | ???????????????????????# ## ## ##??????????? | | ???????????????????????# #??????? #???????????? | | ???????????????????????# #???????? #???????????? | | ???????????????????????#* #???????? #???????????? | | ???????????????????????#%[ #?????????#???????????? | | ???????????????????????#s #?????????????????????? | | ???????????????????????# #?????????????????????? | | ???????????????????????#%% #?????????????????????? | | ??????????????????????? #?????????????????????? | | ??????????????????????? #?????????????????????? | | ??????????????????????? #?????????????????????? | | ??????????????????????######?????????????????????? | | ?????????????????????????????????????????????????? | | ?????????????????????????????????????????????????? | | ?????????????????????????????????????????????????? | | ?????????????????????????????????????????????????? | | ?????????????????????????????????????????????????? | | ?????????????????????????????????????????????????? | | ?????????????????????????????????????????????????? | | ?????????????????????????????????????????????????? | | ?????????????????????????????????????????????????? | | ?????????????????????????????????????????????????? | | ?????????????????????????????????????????????????? | | ?????????????????????????????????????????????????? | +----------------------------------------------------+ Best States ------------- Heat Dissipation 45 Coolant Potential 50 Energy Generation 14 Energy Capacity 280 Matter Stores 300 Matter Capacity 300 Sight Range 18 Robot Scan Range 16 Terrain Scan Density 10 Resistance: KI 20 Resistance: TH 20 Resistance: EX 20 Resistance: EM 20 Resistance: I 20 Resistance: S 20 Resistance: P 20 Evasion (%) 44 Targeting Accuracy 6 Offensive Hacking 10 Item Schematics ----------------- None Robot Schematics ------------------ None Fabricated ------------ Nothing Alien Tech Used ----------------- None Achievements -------------- None Challenges ------------ None RPGLIKE | -11 -10 -9 -8 -8 --------- Run | Scr Mat Mat Mat Gar Levels Raised 6 | . . 3 2 1 XP Earned 13526 | 4000 600 4133 3292 1501 XP Spent 6930 | 3805 . 3125 . . Upgrades 28 | 21 . 7 . . Propulsion Slot 1 | 1 . . . . Utility Slot 2 | 1 . 1 . . Weapon Slot 2 | 1 . 1 . . Core Integrity 8 | 8 . . . . Inventory Capacity 2 | 2 . . . . Sight Range 2 | 2 . . . . Sensor Range 8 | 6 . 2 . . Ranged Accuracy 1 | . . 1 . . TH Damage % 2 | . . 2 . . Protomatter Created 155 | . 59 47 . 49 Integrity Restored 277 | . 130 . . 147 Core 250 | . 103 . . 147 Parts 27 | . 27 . . . Protomatter Decayed . | . . . . . Game ------ Seed GravitySeismicStreamer Manual? 0 Play Time 00:13:14 Cumulative 13.0 hours Start 2019.12.19 @ 13:07:09 End 2019.12.22 @ 02:28:15 Sessions 3 Manual Loads 0 Difficulty Adventurer Special Mode Winter2019/RPGLIKE Game No. 20 Rogue 15 Adventurer 5 Explorer 0 Win Type - Total 0 Types 0/0/0/0/0/0/0 Lore% 19 Gallery% 31 Achievement% 26 Wizard Run 0 Options --------- ASCII 0 Keyboard 0 Movement Mouse Keybinds 0 Fullscreen 1 Font 18/SmallcapsGlow Map View 76x50 Tactical HUD 1 Map Filters SHIFT_HUE(330) Filters SHIFT_HUE(30) Steam 1 RUN: 023a5cb2-55d7-4032-afb0-d1cd233572aa